bitfinex/quotes_BTCUSD_20250218
["timestamp","ask_amount","ask_price","bid_price","bid_amount"]
[1739881988308,1.94226521,96182.0,96181.0,0.2003402]
[1739881988478,6.07484421,96182.0,96181.0,0.2003402]
[1739881988678,9.26168921,96182.0,96181.0,0.2003402]
[1739881988888,8.71798221,96182.0,96181.0,0.2003402]
[1739881989374,7.64571086,96182.0,96181.0,0.2003402]
[1739881989508,6.60931686,96182.0,96181.0,0.2003402]
[1739881989744,6.50681321,96182.0,96181.0,0.2003402]
[1739881989958,6.37882921,96182.0,96181.0,0.2003402]
[1739881990381,6.36295921,96182.0,96181.0,0.2003402]
[1739881992512,6.00616321,96182.0,96181.0,0.2003402]
[1739881992723,5.98821921,96182.0,96181.0,0.2003402]
[1739881993268,5.90332121,96182.0,96181.0,0.2003402]
[1739881993481,5.25284056,96182.0,96181.0,0.2003402]
[1739881993699,0.7712264,96182.0,96181.0,0.2003402]
[1739881993940,0.1561241,96182.0,96181.0,0.2818402]
[1739881995118,1.1879001,96182.0,96181.0,0.2818402]
[1739881995325,1.1874041,96182.0,96181.0,0.2818402]
[1739881995536,0.25862775,96182.0,96181.0,0.2818402]
[1739881995743,3.83938075,96182.0,96181.0,0.2818402]
[1739881995948,3.50911875,96182.0,96181.0,0.2818402]
[1739881996357,3.24085275,96182.0,96181.0,0.2818402]
[1739881996774,3.4933564,96182.0,96181.0,0.2003402]
[1739881997537,3.50965748,96182.0,96181.0,0.2003402]
[1739881997965,3.40715383,96182.0,96181.0,0.2003402]
[1739881999111,0.86908083,96182.0,96181.0,0.2791402]
[1739881999316,0.84447583,96182.0,96181.0,0.2791402]
[1739881999470,0.95863083,96182.0,96181.0,0.2791402]
[1739881999676,0.94826483,96182.0,96181.0,0.2791402]
[1739882000098,0.69902418,96182.0,96181.0,0.2791402]
[1739882000363,0.65357318,96182.0,96181.0,0.2791402]
[1739882000712,0.45383618,96182.0,96181.0,0.2791402]
[1739882000933,0.59741018,96182.0,96181.0,0.2791402]
[1739882001747,0.45383618,96182.0,96181.0,0.2791402]
[1739882002156,0.32242518,96182.0,96181.0,0.2791402]
[1739882002353,0.17242518,96182.0,96181.0,0.2791402]
[1739882002818,0.1561241,96182.0,96181.0,0.2791402]
[1739882003025,0.0001701,96182.0,96181.0,0.3276402]
[1739882003234,0.0001701,96182.0,96181.0,0.4835952]
[1739882003454,0.0001701,96182.0,96181.0,0.3276402]
[1739882005177,0.1561241,96182.0,96181.0,0.3276402]
[1739882007073,0.0001701,96182.0,96181.0,0.3276402]
[1739882007273,0.1561241,96182.0,96181.0,0.3276402]
[1739882011356,1.43603423,96182.0,96181.0,0.3276402]
[1739882011579,1.44437423,96182.0,96181.0,0.3276402]
[1739882011784,1.15357123,96182.0,96181.0,0.3276402]
[1739882011922,1.0155001,96182.0,96181.0,0.3276402]
[1739882012324,0.5810651,96182.0,96181.0,0.3276402]
[1739882013780,0.5343681,96182.0,96181.0,0.3276402]
[1739882016932,0.1561241,96182.0,96181.0,0.3276402]
[1739882017153,1.2684181,96182.0,96181.0,0.3276402]
[1739882017592,0.7809861,96182.0,96181.0,0.3276402]
[1739882018236,0.1561241,96182.0,96181.0,0.3276402]
[1739882018438,1.6624061,96182.0,96181.0,0.3276402]
[1739882019081,1.76490975,96182.0,96181.0,0.3276402]
[1739882019318,1.74862075,96182.0,96181.0,0.3276402]
[1739882020529,1.3384231,96182.0,96181.0,0.3276402]
[1739882020728,1.2266681,96182.0,96181.0,0.3276402]
[1739882020930,0.4089691,96182.0,96181.0,0.3276402]
[1739882022368,0.5241591,96182.0,96181.0,0.3276402]
[1739882022568,0.1561241,96182.0,96181.0,0.3276402]
[1739882027750,0.01686011,96185.0,96181.0,0.3276402]
[1739882027945,0.652791,96184.0,96181.0,0.3276402]
[1739882028209,0.78738,96185.0,96181.0,0.3276402]
[1739882028333,0.756265,96185.0,96181.0,0.3276402]
[1739882028544,1.29740458,96185.0,96181.0,0.3276402]
[1739882028748,0.155954,96182.0,96181.0,0.3276402]
[1739882030052,0.155454,96182.0,96181.0,0.3276402]
[1739882030453,0.156454,96182.0,96181.0,0.3276402]
[1739882034640,0.02028466,96185.0,96181.0,0.3276402]
[1739882034864,2.685357,96184.0,96181.0,0.3276402]
[1739882035270,0.155954,96182.0,96181.0,0.2488402]
[1739882035401,1.68765,96182.0,96181.0,0.2488402]
[1739882035781,1.578139,96182.0,96181.0,0.2488402]
[1739882035977,1.136306,96182.0,96181.0,0.2488402]
[1739882036118,1.0396,96182.0,96181.0,0.2488402]
[1739882036549,1.0406,96182.0,96181.0,0.2488402]
[1739882036721,0.636576,96182.0,96181.0,0.2488402]
[1739882037102,0.609447,96182.0,96181.0,0.2488402]
[1739882037308,0.156954,96182.0,96181.0,0.2488402]
[1739882037512,0.156954,96182.0,96181.0,0.3256402]
[1739882041461,0.001,96182.0,96181.0,0.3256402]
[1739882042257,0.001,96182.0,96181.0,0.4815952]
[1739882043535,0.001,96182.0,96181.0,0.3256402]
[1739882044397,0.001,96182.0,96181.0,0.2003402]
[1739882044605,0.156954,96182.0,96181.0,0.2003402]
[1739882044812,3.327021,96182.0,96181.0,0.2003402]
[1739882045030,3.209451,96182.0,96181.0,0.2003402]
[1739882046562,2.706877,96182.0,96181.0,0.2003402]
[1739882047758,2.72317696,96182.0,96181.0,0.2003402]
[1739882047960,0.85700296,96182.0,96181.0,0.2003402]
[1739882048338,0.75624496,96182.0,96181.0,0.2003402]
[1739882048548,0.34155196,96182.0,96181.0,0.2789402]
[1739882048777,0.17325396,96182.0,96181.0,0.2789402]
[1739882050343,0.01729996,96182.0,96181.0,0.2789402]
[1739882051353,0.17325396,96182.0,96181.0,0.2789402]
[1739882051757,0.156954,96182.0,96181.0,0.2789402]
[1739882056378,0.001,96182.0,96181.0,0.2789402]
[1739882057250,0.001,96182.0,96181.0,0.4348952]
[1739882057430,0.001,96182.0,96181.0,0.2789402]
[1739882057854,0.001,96182.0,96181.0,0.4348952]
[1739882062307,0.001,96182.0,96181.0,0.4831952]
[1739882068622,0.0001702,96184.0,96183.0,0.155952]
[1739882068800,0.0001702,96184.0,96183.0,0.23669156]
[1739882069010,0.0001702,96184.0,96183.0,0.235652]
[1739882069210,0.0001702,96184.0,96183.0,0.5122593]
[1739882069985,0.0001702,96184.0,96183.0,0.5152593]
[1739882073075,0.0001702,96184.0,96183.0,0.52263366]
[1739882074787,0.0001702,96184.0,96183.0,0.85113366]
[1739882076620,0.0001702,96196.0,96195.0,0.155933]
[1739882076832,0.0001702,96196.0,96195.0,0.9922608]
[1739882077027,0.0001702,96196.0,96195.0,0.99122165]
[1739882077263,0.0001702,96196.0,96195.0,1.14122165]
[1739882077438,0.0004,96209.0,96203.0,0.02]
[1739882077439,0.00020019,96209.0,96203.0,0.02]
[1739882077650,0.00030067,96209.0,96208.0,0.48933335]
[1739882078205,0.00030067,96209.0,96208.0,0.38241565]
[1739882078406,0.00030067,96209.0,96208.0,0.22650365]
[1739882078610,0.00030067,96209.0,96208.0,0.38241565]
[1739882078812,0.00030067,96209.0,96208.0,0.46444572]
[1739882079184,0.00030067,96209.0,96208.0,0.47144572]
[1739882079591,0.00030067,96209.0,96208.0,0.47044572]
[1739882080043,0.00030067,96209.0,96208.0,0.47644572]
[1739882080424,0.00030067,96209.0,96208.0,0.47044572]
[1739882081810,0.00030067,96209.0,96208.0,0.47544572]
[1739882082641,0.00047087,96209.0,96208.0,0.47544572]
[1739882084498,0.00047087,96209.0,96208.0,0.41641565]
[1739882095013,0.00047087,96209.0,96208.0,0.41675605]
[1739882097386,0.00047087,96209.0,96208.0,0.61675605]
[1739882099219,0.00047087,96209.0,96208.0,0.46084405]
[1739882099438,0.15638087,96209.0,96208.0,0.2113404]
[1739882100058,0.15638087,96209.0,96208.0,0.2063404]
[1739882100284,0.15638087,96209.0,96208.0,0.2003404]
[1739882100497,0.00047087,96209.0,96208.0,0.51318644]
[1739882100705,0.00047087,96209.0,96208.0,0.63469009]
[1739882100920,0.00047087,96209.0,96208.0,0.60965605]
[1739882101132,0.00047087,96209.0,96208.0,0.4881524]
[1739882101346,0.00047087,96209.0,96208.0,0.3362404]
[1739882101550,0.00047087,96209.0,96208.0,0.4921524]
[1739882101758,0.00047087,96209.0,96208.0,0.4881524]
[1739882102190,0.00047087,96209.0,96208.0,0.4841524]
[1739882102605,0.00047087,96209.0,96208.0,0.4881524]
[1739882102811,0.00047087,96209.0,96208.0,0.61365605]
[1739882103024,0.01730721,96223.0,96208.0,0.61365605]
[1739882103025,0.207829,96233.0,96223.0,0.0752]
[1739882103234,0.15,96231.0,96223.0,0.231087]
[1739882103442,0.15,96238.0,96223.0,0.0752]
[1739882103443,0.15,96237.0,96223.0,0.0752]
[1739882103650,0.322618,96236.0,96223.0,0.0752]
[1739882103904,0.15,96235.0,96223.0,0.0752]
[1739882104107,0.189485,96234.0,96223.0,0.0752]
[1739882104519,0.155881,96228.0,96223.0,0.0752]
[1739882104732,0.207828,96233.0,96223.0,0.0752]
[1739882104934,0.15588,96228.0,96223.0,0.0752]
[1739882105046,0.155881,96227.0,96223.0,0.0752]
[1739882105245,0.155879,96228.0,96223.0,0.0752]
[1739882105659,0.155878,96229.0,96223.0,0.231087]
[1739882105833,0.01629081,96228.0,96223.0,0.231087]
[1739882106038,0.17217081,96228.0,96223.0,0.0752]
[1739882106381,0.01629081,96228.0,96223.0,0.0752]
[1739882107353,0.155883,96226.0,96223.0,0.0752]
[1739882108098,0.17217081,96228.0,96223.0,0.0752]
[1739882108283,0.00043919,96239.0,96238.0,0.155863]
[1739882108507,0.00043919,96239.0,96238.0,0.2772493]
[1739882108715,0.00043919,96239.0,96238.0,0.3232493]
[1739882109360,0.00043919,96239.0,96238.0,0.42575295]
[1739882110044,0.00043919,96239.0,96238.0,0.43275295]
[1739882110283,0.00043919,96239.0,96238.0,0.42575295]
[1739882110493,0.00043919,96239.0,96238.0,0.43275295]
[1739882110724,0.00043919,96239.0,96238.0,0.44009462]
[1739882111633,0.00043919,96239.0,96238.0,0.44709462]
[1739882111841,0.00043919,96239.0,96238.0,0.43975295]
[1739882114134,0.15,96277.0,96240.0,0.0789]
[1739882114337,0.155815,96268.0,96262.0,0.155823]
[1739882114556,0.155814,96269.0,96261.0,0.0788]
[1739882114761,0.155816,96267.0,96261.0,0.234626]
[1739882114968,0.207751,96269.0,96262.0,0.04434377]
[1739882115379,0.155816,96267.0,96261.0,0.234626]
[1739882115580,0.155815,96268.0,96261.0,0.234626]
[1739882115786,0.15581,96271.0,96261.0,0.234626]
[1739882115997,0.947322,96270.0,96262.0,0.155824]
[1739882116382,1.155072,96270.0,96261.0,0.0788]
[1739882116634,0.15582,96265.0,96261.0,0.0788]
[1739882116837,0.155816,96267.0,96261.0,0.0788]
[1739882117039,0.22402862,96272.0,96261.0,0.0788]
[1739882117261,1.160614,96271.0,96261.0,0.0788]
[1739882117467,0.155815,96268.0,96262.0,0.155824]
[1739882117670,0.207749,96270.0,96262.0,0.155824]
[1739882117880,1.084299,96269.0,96261.0,0.0788]
[1739882118084,0.01628462,96272.0,96261.0,0.0788]
[1739882118300,0.15582,96265.0,96261.0,0.0788]
[1739882118501,0.155818,96266.0,96261.0,0.0788]
[1739882118711,0.15582,96265.0,96261.0,0.0788]
[1739882119134,0.0001701,96266.0,96261.0,0.0788]
[1739882119346,0.1559891,96266.0,96261.0,0.0788]
[1739882119473,0.155821,96264.0,96261.0,0.0788]
[1739882119667,0.155821,96264.0,96261.0,0.0798]
[1739882119923,0.155821,96264.0,96261.0,0.0808]
[1739882120275,0.155824,96262.0,96261.0,0.001]
[1739882120686,3.207472,96262.0,96261.0,0.003]
[1739882120901,1.41673982,96262.0,96261.0,0.002]
[1739882121100,1.15192582,96262.0,96261.0,0.002]
[1739882121318,0.99610182,96262.0,96261.0,0.003]
[1739882121535,0.17210982,96262.0,96261.0,0.002]
[1739882121735,0.0001701,96266.0,96261.0,0.20408175]
[1739882121948,0.0001701,96266.0,96265.0,0.155819]
[1739882122380,0.0001701,96266.0,96265.0,0.15685765]
[1739882123247,0.05140902,96350.0,96266.0,0.2763]
[1739882123463,0.0004,96409.0,96372.0,0.02]
[1739882123464,0.01460716,96405.0,96372.0,0.02]
[1739882123714,0.0004,96409.0,96376.0,0.02]
[1739882123986,0.104134,96408.0,96393.0,0.02]
[1739882124199,0.014608,96404.0,96394.0,0.00103707]
[1739882124407,0.510749,96403.0,96395.0,0.0010371]
[1739882124612,0.0004,96409.0,96371.0,0.1263]
[1739882124613,3.489002,96408.0,96376.0,0.00103722]
[1739882124814,4.20291,96408.0,96376.0,0.00103722]
[1739882125022,0.00043965,96404.0,96376.0,0.20855722]
[1739882125237,0.14536765,96400.0,96376.0,0.00103722]
[1739882125443,1.122866,96399.0,96372.0,0.207529]
[1739882125670,1.122866,96399.0,96372.0,0.00203727]
[1739882125878,1.122866,96399.0,96376.0,0.004]
[1739882126302,0.155606,96397.0,96376.0,0.211519]
[1739882126558,1.650281,96396.0,96376.0,0.004]
[1739882126767,2.113601,96399.0,96376.0,0.004]
[1739882126982,2.130803,96399.0,96377.0,0.207518]
[1739882127193,2.130803,96399.0,96371.0,0.0778]
[1739882127387,0.01626377,96394.0,96371.0,0.0778]
[1739882127823,0.01626377,96394.0,96393.0,0.155612]
[1739882128655,0.01626377,96394.0,96392.0,0.155613]
[1739882129097,0.01626377,96394.0,96371.0,0.0778]
[1739882129302,0.155603,96399.0,96390.0,0.155617]
[1739882129513,0.21273862,96402.0,96371.0,0.0778]
[1739882129721,0.155603,96399.0,96393.0,0.004]
[1739882130139,0.155605,96398.0,96387.0,0.207494]
[1739882130396,0.00043965,96404.0,96402.0,0.155597]
[1739882130869,0.00043965,96404.0,96403.0,0.16059405]
[1739882132141,0.00043965,96404.0,96403.0,0.16459405]
[1739882132542,0.00043965,96404.0,96403.0,0.31459405]
[1739882132746,0.00043965,96404.0,96403.0,0.31855685]
[1739882132974,0.0004,96409.0,96408.0,0.155588]
[1739882133200,0.00053179,96409.0,96408.0,0.40514913]
[1739882133403,0.00053179,96409.0,96408.0,0.24852414]
[1739882133609,0.00053179,96409.0,96408.0,0.10250365]
[1739882134015,0.00053179,96409.0,96408.0,0.10354072]
[1739882134264,0.00053179,96409.0,96408.0,0.10250365]
[1739882134469,0.00053179,96409.0,96408.0,0.10950365]
[1739882134675,0.55221879,96409.0,96408.0,0.007]
[1739882134899,0.00053179,96409.0,96408.0,0.007]
[1739882135261,0.14054479,96409.0,96408.0,0.007]
[1739882135510,0.00053179,96409.0,96408.0,0.007]
[1739882135717,0.00053179,96409.0,96408.0,0.10950365]
[1739882135926,0.00053179,96409.0,96408.0,0.14830334]
[1739882136138,0.00053179,96409.0,96408.0,0.014]
[1739882136364,0.00053179,96409.0,96408.0,0.007]
[1739882136575,0.00053179,96409.0,96408.0,0.009]
[1739882136997,0.00053179,96409.0,96408.0,0.002]
[1739882137406,0.00153179,96409.0,96408.0,0.002]
[1739882137621,1.20750179,96409.0,96393.0,0.076]
[1739882137834,1.20750179,96409.0,96394.0,0.13085325]
[1739882137835,0.155602,96400.0,96394.0,0.13085325]
[1739882138246,0.207451,96408.0,96394.0,0.13085325]
[1739882138447,0.00053179,96409.0,96394.0,0.0283496]
[1739882138650,0.155605,96398.0,96395.0,0.00103725]
[1739882138868,0.00053179,96409.0,96393.0,0.17850365]
[1739882139083,0.155603,96399.0,96394.0,0.00403725]
[1739882139333,0.00053179,96409.0,96394.0,0.003]
[1739882139538,0.11068,96408.0,96395.0,0.05560174]
[1739882139745,0.155603,96399.0,96395.0,0.05960174]
[1739882139970,0.00053179,96409.0,96396.0,0.10250365]
[1739882140203,0.00053179,96409.0,96397.0,0.15664116]
[1739882140418,0.155593,96406.0,96399.0,0.155603]
[1739882140635,0.00053179,96409.0,96408.0,0.155588]
[1739882140846,0.15611879,96409.0,96402.0,0.155598]
[1739882141051,0.00053179,96409.0,96403.0,0.1214149]
[1739882141253,0.00053179,96409.0,96403.0,0.10250365]
[1739882141663,0.00053179,96409.0,96395.0,0.001]
[1739882141898,0.20798079,96409.0,96408.0,0.001]
[1739882142107,0.20798079,96409.0,96396.0,0.10250365]
[1739882142108,0.155596,96404.0,96396.0,0.10250365]
[1739882142311,0.155596,96404.0,96397.0,0.05429344]
[1739882142513,0.0001699,96404.0,96398.0,0.10250365]
[1739882143329,0.0001699,96404.0,96399.0,0.00103716]
[1739882143540,0.1557649,96404.0,96403.0,0.002]
[1739882143757,0.0001699,96404.0,96396.0,0.00303725]
[1739882143965,0.155603,96399.0,96398.0,0.002]
[1739882144177,0.155603,96399.0,96398.0,0.004]
[1739882144423,0.1556,96401.0,96398.0,0.002]
[1739882144625,0.0001699,96404.0,96399.0,0.03609917]
[1739882144795,0.155601,96400.0,96399.0,0.03609917]
[1739882145399,0.155603,96399.0,96398.0,0.003]
[1739882146177,0.305603,96399.0,96398.0,0.003]
[1739882146551,0.155606,96397.0,96396.0,0.002]
[1739882146759,0.155609,96395.0,96394.0,0.0003398]
[1739882147587,0.590283,96395.0,96394.0,0.0003398]
[1739882147794,0.235589,96395.0,96394.0,0.0003398]
[1739882147966,0.344678,96395.0,96394.0,0.0053398]
[1739882148171,0.155609,96395.0,96394.0,0.0053398]
[1739882148713,0.155609,96395.0,96394.0,0.0113398]
[1739882149899,0.0001699,96404.0,96394.0,0.0113398]
[1739882150154,0.0001699,96404.0,96395.0,0.1035409]
[1739882150484,0.0001699,96404.0,96396.0,0.21896407]
[1739882150764,0.0001699,96404.0,96399.0,0.155601]
[1739882150966,0.0001699,96404.0,96400.0,0.10354083]
[1739882152333,0.0001699,96404.0,96403.0,0.155596]
[1739882152485,0.0001699,96404.0,96403.0,0.15663317]
[1739882152690,0.0001699,96404.0,96403.0,0.22538926]
[1739882152900,0.0001699,96404.0,96403.0,0.06875609]
[1739882153101,0.0001699,96404.0,96403.0,0.00103719]
[1739882153308,0.0001699,96404.0,96400.0,0.10650365]
[1739882153512,0.0001699,96404.0,96403.0,0.155596]
[1739882153736,0.0001699,96404.0,96403.0,0.33273677]
[1739882153896,0.0001699,96404.0,96403.0,0.33369965]
[1739882154096,0.0001699,96404.0,96403.0,0.4160102]
[1739882154339,0.0001699,96404.0,96403.0,1.0376102]
[1739882154568,0.00053179,96409.0,96408.0,0.178588]
[1739882154779,0.00053179,96409.0,96408.0,0.28212858]
[1739882154983,0.00053179,96409.0,96408.0,0.28109165]
[1739882155197,0.00053179,96409.0,96408.0,0.91266679]
[1739882155629,0.00053179,96409.0,96408.0,0.93160627]
[1739882155834,0.00053179,96409.0,96408.0,0.94694861]
[1739882156036,0.00053179,96409.0,96408.0,0.95394861]
[1739882156685,0.00053179,96409.0,96408.0,0.41514861]
[1739882156886,0.00053179,96409.0,96408.0,0.96094861]
[1739882157618,0.00053179,96409.0,96408.0,0.99277107]
[1739882158344,0.00053179,96409.0,96408.0,0.45397107]
[1739882158602,0.00053179,96409.0,96408.0,0.20560793]
[1739882159092,0.00053179,96409.0,96408.0,0.18260793]
[1739882159528,0.00053179,96409.0,96408.0,0.33819593]
[1739882159734,0.00053179,96409.0,96408.0,0.36119593]
[1739882160526,0.00053179,96409.0,96408.0,0.34585359]
[1739882160750,0.00053179,96409.0,96408.0,0.44835724]
[1739882162317,0.02162848,96443.0,96409.0,0.023]
[1739882162530,0.00013155,96443.0,96418.0,0.023]
[1739882162742,0.00013155,96443.0,96420.0,0.230425]
[1739882162957,0.02197839,96443.0,96422.0,0.023]
[1739882163165,0.00013155,96443.0,96436.0,0.155542]
[1739882163386,0.00013155,96443.0,96437.0,0.11805785]
[1739882163591,0.02202812,96443.0,96438.0,0.00103679]
[1739882163804,0.00013155,96443.0,96439.0,0.10250365]
[1739882164017,0.15566455,96443.0,96440.0,0.01180579]
[1739882164220,0.15566355,96443.0,96440.0,0.11430944]
[1739882164436,0.00013155,96443.0,96440.0,0.11430944]
[1739882164870,0.155534,96442.0,96440.0,0.11430944]
[1739882165083,0.02207568,96443.0,96441.0,0.10250365]
[1739882165282,0.02207568,96443.0,96442.0,0.01216121]
[1739882165500,0.33392568,96443.0,96442.0,0.01216121]
[1739882165713,0.155534,96442.0,96437.0,0.0073027]
[1739882165947,0.02207568,96443.0,96438.0,0.10250365]
[1739882166152,0.02224588,96443.0,96438.0,0.10250365]
[1739882166378,0.17777888,96443.0,96438.0,0.10250365]
[1739882166550,0.155535,96441.0,96439.0,0.01025037]
[1739882166869,0.155534,96442.0,96440.0,0.10250365]
[1739882167569,0.02224588,96443.0,96440.0,0.10250365]
[1739882167775,0.15583375,96443.0,96440.0,0.10250365]
[1739882168209,0.00030175,96443.0,96440.0,0.10250365]
[1739882168439,0.00030175,96443.0,96441.0,0.0112754]
[1739882169331,0.00030175,96443.0,96441.0,0.01231218]
[1739882169575,0.00030175,96443.0,96442.0,0.00103676]
[1739882169755,0.23522175,96443.0,96442.0,0.00103676]
[1739882169957,0.23522175,96443.0,96440.0,0.10250365]
[1739882170205,0.00030175,96443.0,96440.0,0.10250365]
[1739882170385,0.155533,96442.0,96440.0,0.10250365]
[1739882170608,0.00030175,96443.0,96440.0,0.1128577]
[1739882171346,0.00030175,96443.0,96441.0,0.00103681]
[1739882171555,0.00030175,96443.0,96442.0,0.10250365]
[1739882171778,0.23022175,96443.0,96442.0,0.10354039]
[1739882171981,0.00030175,96443.0,96442.0,0.13463239]
[1739882172189,0.00030175,96443.0,96442.0,0.10354037]
[1739882173160,0.00030175,96443.0,96442.0,0.13543082]
[1739882173480,0.00030175,96443.0,96442.0,0.10354037]
[1739882173690,0.00030175,96443.0,96442.0,0.10554037]
[1739882173890,0.00030175,96443.0,96442.0,0.13742834]
[1739882174112,0.00030175,96443.0,96442.0,0.19305898]
[1739882174531,0.00030175,96443.0,96442.0,0.16117101]
[1739882174760,0.00030175,96443.0,96442.0,0.10554037]
[1739882175388,0.00030175,96443.0,96442.0,0.26307337]
[1739882175662,0.00030175,96443.0,96442.0,0.28503665]
[1739882176910,0.0004,96449.0,96448.0,0.178524]
[1739882177145,0.0004,96449.0,96448.0,0.38939854]
[1739882177402,0.0004,96449.0,96448.0,0.38836202]
[1739882177610,0.0004,96449.0,96448.0,0.35649147]
[1739882178697,0.0004,96449.0,96448.0,0.3754133]
[1739882178927,0.0004,96449.0,96448.0,0.12142548]
[1739882179383,0.0004,96449.0,96448.0,0.13242548]
[1739882179604,0.0004,96449.0,96448.0,0.12742548]
[1739882179885,0.0004,96449.0,96448.0,0.12142548]
[1739882180138,0.0004,96449.0,96448.0,0.3121957]
[1739882180618,0.0004,96449.0,96448.0,0.1566717]
[1739882180856,0.0004,96449.0,96448.0,0.13774987]
[1739882181326,0.0004,96449.0,96448.0,0.12550365]
[1739882181551,0.0004,96449.0,96448.0,0.12654021]
[1739882181758,0.0004,96449.0,96448.0,0.12654024]
[1739882182640,0.0004,96449.0,96448.0,0.12854024]
[1739882182915,0.0004,96449.0,96448.0,0.13050365]
[1739882183181,0.0004,96449.0,96448.0,0.19255431]
[1739882185036,0.212643,96465.0,96448.0,0.16955431]
[1739882185256,0.207343,96459.0,96449.0,0.10250365]
[1739882185513,0.005314,96465.0,96449.0,0.10250365]
[1739882185705,0.155519,96451.0,96449.0,0.10250365]
[1739882186402,0.207357,96452.0,96449.0,0.11275402]
[1739882186615,0.15552,96450.0,96449.0,0.11275402]
[1739882186869,0.207351,96455.0,96449.0,0.10250365]
[1739882187099,0.155519,96452.0,96449.0,0.10250365]
[1739882187358,0.155518,96452.0,96449.0,0.10250365]
[1739882187595,0.207344,96458.0,96450.0,0.01025037]
[1739882187835,0.184505,96457.0,96450.0,0.11275402]
[1739882188082,0.155519,96451.0,96450.0,0.11275402]
[1739882188759,0.526947,96451.0,96450.0,0.01025037]
[1739882188974,0.15552,96450.0,96449.0,0.002]
[1739882189193,0.15552,96450.0,96395.0,0.5388]
[1739882189194,0.15,96436.0,96395.0,0.5388]
[1739882189420,0.03692101,96451.0,96432.0,0.00013155]
[1739882189626,0.01666667,96435.0,96432.0,0.00013155]
[1739882190130,0.01666667,96435.0,96433.0,0.10250365]
[1739882190366,0.01666667,96435.0,96434.0,0.16694997]
[1739882190600,0.01666667,96435.0,96434.0,0.26945362]
[1739882190835,0.01666667,96435.0,96434.0,0.26841686]
[1739882191060,0.01666667,96435.0,96434.0,0.34501686]
[1739882192662,0.01666667,96435.0,96434.0,0.20047086]
[1739882192916,0.01666667,96435.0,96434.0,0.35705365]
[1739882193145,0.17221167,96435.0,96434.0,0.10250365]
[1739882193379,0.17221167,96435.0,96434.0,0.10950365]
[1739882194087,1.67927467,96435.0,96434.0,0.007]
[1739882194333,2.90492567,96435.0,96434.0,0.007]
[1739882194568,0.52483467,96435.0,96434.0,0.10950365]
[1739882194793,0.48371167,96435.0,96434.0,0.003]
[1739882195022,0.48371167,96435.0,96434.0,0.007]
[1739882195293,0.32816667,96435.0,96434.0,0.10650365]
[1739882195524,0.16666667,96435.0,96434.0,0.25904965]
[1739882195759,0.16666667,96435.0,96434.0,0.16990207]
[1739882195959,0.16666667,96435.0,96434.0,0.32544807]
[1739882196214,0.16666667,96435.0,96434.0,0.16990207]
[1739882196438,0.16666667,96435.0,96434.0,0.10250365]
[1739882197106,0.32221167,96435.0,96434.0,0.10250365]
[1739882197309,0.16666667,96435.0,96434.0,0.10250365]
[1739882197529,0.155548,96433.0,96432.0,0.00013155]
[1739882199118,2.148422,96433.0,96432.0,0.00013155]
[1739882199294,2.49933,96433.0,96432.0,0.00013155]
[1739882199501,3.334794,96433.0,96432.0,0.00013155]
[1739882199697,3.821252,96433.0,96432.0,0.00013155]
[1739882200024,3.698978,96433.0,96432.0,0.00013155]
[1739882200222,3.540982,96433.0,96432.0,0.00013155]
[1739882200400,3.025116,96433.0,96432.0,0.00013155]
[1739882201211,3.2301233,96433.0,96432.0,5.5e-07]
[1739882201407,0.155587,96409.0,96408.0,0.0003404]
[1739882202097,1.261513,96409.0,96408.0,0.0003404]
[1739882202318,1.105926,96409.0,96408.0,0.10284405]
[1739882202532,0.01666667,96435.0,96410.0,0.0493]
[1739882202735,0.0001702,96454.0,96453.0,0.155516]
[1739882202944,0.0001702,96454.0,96453.0,0.1710676]
[1739882203157,0.0003017,96454.0,96453.0,0.17210427]
[1739882203577,0.0003017,96454.0,96453.0,0.27357125]
[1739882204400,0.0003017,96454.0,96453.0,0.1710676]
[1739882205023,0.0003017,96454.0,96453.0,0.1720676]
[1739882205239,0.0003017,96454.0,96453.0,0.0185516]
[1739882205453,0.1558157,96454.0,96453.0,0.002]
[1739882205686,0.1558157,96454.0,96453.0,0.003]
[1739882206162,0.6764827,96454.0,96453.0,0.003]
[1739882206366,0.0003017,96454.0,96435.0,0.0808]
[1739882206621,1.549945,96453.0,96437.0,0.16449767]
[1739882206829,1.852949,96452.0,96437.0,0.06199402]
[1739882207041,1.918503,96451.0,96433.0,0.207395]
[1739882207300,0.15,96452.0,96434.0,0.10284385]
[1739882207548,0.155545,96435.0,96434.0,0.0003402]
[1739882207792,0.705736,96435.0,96434.0,0.0003402]
[1739882208048,0.49385,96435.0,96434.0,0.0003402]
[1739882208261,0.15,96446.0,96434.0,0.0003402]
[1739882208465,0.155545,96435.0,96434.0,0.0003402]
[1739882208678,0.530097,96435.0,96434.0,0.0003402]
[1739882208896,0.155545,96435.0,96434.0,0.0003402]
[1739882209124,1.713118,96435.0,96434.0,0.0013402]
[1739882209333,1.711959,96435.0,96434.0,0.0003402]
[1739882209934,1.283276,96435.0,96434.0,0.0003402]
[1739882210265,1.22577,96435.0,96434.0,0.0003402]
[1739882210446,1.22577,96435.0,96434.0,0.0023402]
[1739882210826,0.305545,96435.0,96434.0,0.0023402]
[1739882211022,4.072227,96435.0,96434.0,0.0023402]
[1739882211248,4.072227,96435.0,96434.0,0.0033402]
[1739882211612,4.072227,96435.0,96434.0,0.0003402]
[1739882211817,4.072227,96435.0,96434.0,0.0033402]
[1739882212178,4.072227,96435.0,96408.0,0.0003404]
[1739882212179,0.155587,96409.0,96408.0,0.0003404]
[1739882212402,0.155585,96411.0,96408.0,0.0003404]
[1739882212611,0.38773,96410.0,96408.0,0.0003404]
[1739882212992,0.207441,96413.0,96408.0,0.0003404]
[1739882212993,0.305587,96409.0,96408.0,0.0003404]
[1739882213362,3.033752,96409.0,96408.0,0.0003404]
[1739882213567,3.411365,96409.0,96408.0,0.0043404]
[1739882213775,3.861446,96409.0,96408.0,0.0043404]
[1739882213979,2.87317,96409.0,96408.0,0.0043404]
[1739882214659,2.800318,96409.0,96408.0,0.0043404]
[1739882214874,2.82470333,96409.0,96408.0,0.0003404]
[1739882215077,2.82470333,96409.0,96408.0,0.0023404]
[1739882215470,2.84296442,96409.0,96408.0,0.0023404]
[1739882215699,2.83596442,96409.0,96408.0,0.0003404]
[1739882215893,1.17619042,96409.0,96408.0,0.0003404]
[1739882216128,3.82585242,96409.0,96408.0,0.0003404]
[1739882216321,4.64512042,96409.0,96408.0,0.0003404]
[1739882216618,4.84808042,96409.0,96408.0,0.0003404]
[1739882216822,4.44640207,96409.0,96408.0,0.0013404]